bitfinex/quotes_SOLUSD_20250721
["timestamp","ask_amount","ask_price","bid_price","bid_amount"]
[1753131577748,100.34861051,194.02,194.0,0.68]
[1753131578160,100.34861051,194.02,193.99,36.8]
[1753131578371,100.34861051,194.02,193.99,37.46]
[1753131578749,100.34861051,194.02,193.99,36.8]
[1753131579551,101.01861051,194.02,193.99,36.8]
[1753131580272,6.69448407,194.0,193.99,36.8]
[1753131580470,14.03329803,194.0,193.92,0.03]
[1753131580773,6.69448407,193.94,193.92,36.83]
[1753131581256,1.31446277,193.96,193.92,36.83]
[1753131581449,6.69448407,193.94,193.92,36.83]
[1753131581853,0.67,193.94,193.92,36.83]
[1753131582071,6.69448407,193.93,193.92,36.83]
[1753131582474,7.36448407,193.94,193.92,36.83]
[1753131582680,6.69448407,193.94,193.92,36.83]
[1753131582866,0.67,193.94,193.92,36.83]
[1753131583071,1.31446277,193.96,193.92,36.83]
[1753131583277,6.69448407,193.95,193.92,36.83]
[1753131583955,6.69448407,193.97,193.93,0.66]
[1753131584154,6.69448407,193.97,193.94,0.66]
[1753131584369,7.36448407,193.96,193.92,36.83]
[1753131584552,7.36448407,193.95,193.92,36.83]
[1753131585074,6.69448407,193.95,193.92,36.83]
[1753131585654,0.67,193.94,193.92,36.83]
[1753131585878,7.36448407,193.94,193.92,36.83]
[1753131586476,12.52072683,193.94,193.92,36.83]
[1753131586863,6.69448407,193.93,193.92,36.83]
[1753131587076,7.36448407,193.93,193.92,36.83]
[1753131587457,6.69448407,193.93,193.92,36.83]
[1753131587767,7.36448407,193.93,193.92,36.83]
[1753131588169,11.85072683,193.94,193.92,36.83]
[1753131588368,6.69448407,193.93,193.92,36.83]
[1753131588574,6.69448407,193.94,193.92,36.83]
[1753131588782,88.5,193.95,193.92,36.83]
[1753131588783,95.19448407,193.95,193.92,36.83]
[1753131588969,95.19448407,193.95,193.92,37.49]
[1753131589470,95.86448407,193.95,193.92,36.83]
[1753131590380,6.69448407,193.93,193.92,36.83]
[1753131590582,6.69448407,193.93,193.92,0.03]
[1753131590878,7.36448407,193.93,193.92,0.03]
[1753131592186,6.69448407,193.93,193.92,0.03]
[1753131592478,7.36448407,193.93,193.92,0.03]
[1753131593263,12.52098383,193.93,193.92,0.03]
[1753131594658,13.1655463,193.93,193.92,0.03]
[1753131595363,12.52098383,193.93,193.92,0.03]
[1753131595564,6.69448407,193.93,193.92,0.03]
[1753131595763,6.69448407,193.94,193.92,0.03]
[1753131596366,0.644496,193.95,193.93,0.66]
[1753131596583,6.69448407,193.96,193.94,0.66]
[1753131596960,6.69448407,193.95,193.92,0.03]
[1753131597160,6.69448407,193.95,193.92,0.69]
[1753131597570,95.19448407,193.96,193.92,0.69]
[1753131597762,95.19448407,193.96,193.93,0.66]
[1753131598073,7.36448407,193.95,193.92,0.03]
[1753131598380,11.85085068,193.94,193.92,0.03]
[1753131598578,6.69448407,193.93,193.92,0.03]
[1753131598774,7.36448407,193.93,193.92,0.03]
[1753131598975,6.69448407,193.93,193.92,0.03]
[1753131599376,7.36448407,193.93,193.92,0.03]
[1753131600562,18.36728397,193.92,193.91,0.03]
[1753131600767,18.36728397,193.92,193.77,12.90182089]
[1753131600768,33.07084781,193.92,193.82,36.8]
[1753131600985,6.69448407,193.83,193.78,36.8]
[1753131601169,0.64479521,193.86,193.78,36.8]
[1753131601483,6.69448407,193.82,193.78,36.8]
[1753131601690,0.67,193.85,193.79,0.66]
[1753131601988,6.69448407,193.82,193.79,0.66]
[1753131602296,0.67,193.82,193.78,36.8]
[1753131602503,6.69448407,193.8,193.76,0.66]
[1753131602786,0.64479521,193.86,193.74,6.69448407]
[1753131602787,88.5,193.82,193.74,11.85600273]
[1753131602964,6.69448407,193.79,193.78,0.03]
[1753131603166,6.69448407,193.8,193.78,0.03]
[1753131603365,88.5,193.81,193.78,0.69]
[1753131603571,88.5,193.84,193.79,0.66]
[1753131603779,6.69448407,193.83,193.79,0.26438517]
[1753131603989,95.19448407,193.84,193.8,0.66]
[1753131604182,95.19448407,193.84,193.81,0.66]
[1753131604361,95.19448407,193.84,193.78,43.52448407]
[1753131604362,6.69448407,193.82,193.78,36.83]
[1753131604570,7.36448407,193.82,193.78,41.99046209]
[1753131604869,6.69448407,193.83,193.78,41.99046209]
[1753131605074,95.19448407,193.84,193.79,0.66]
[1753131605314,6.69448407,193.81,193.78,36.83]
[1753131605473,7.36448407,193.81,193.78,36.83]
[1753131605672,6.69448407,193.79,193.78,0.03]
[1753131605874,0.67,193.79,193.78,0.03]
[1753131606071,6.69448407,193.8,193.78,5.19049127]
[1753131606288,95.19448407,193.82,193.78,5.19049127]
[1753131606471,6.69448407,193.81,193.78,0.03]
[1753131607405,88.5,193.82,193.78,0.03]
[1753131607564,88.5,193.82,193.79,0.66]
[1753131607772,88.5,193.82,193.8,0.66]
[1753131608191,88.5,193.82,193.78,0.03]
[1753131608384,88.5,193.82,193.78,0.69]
[1753131609178,95.19448407,193.82,193.78,5.190468]
[1753131609381,6.69448407,193.79,193.78,0.03]
[1753131609581,6.69448407,193.8,193.78,0.03]
[1753131609883,6.69448407,193.8,193.78,5.1903983]
[1753131610309,7.39448407,193.8,193.78,0.03]
[1753131611083,0.7,193.8,193.78,0.03]
[1753131611811,6.69448407,193.81,193.78,0.03]
[1753131612398,95.19448407,193.82,193.78,0.03]
[1753131612604,0.7,193.81,193.78,0.03]
[1753131613099,95.19448407,193.82,193.78,0.03]
[1753131613794,95.19448407,193.82,193.78,0.69]
[1753131614180,95.19448407,193.82,193.78,0.03]
[1753131614497,95.89448407,193.82,193.78,0.03]
[1753131614899,89.2,193.82,193.78,0.03]
[1753131615096,95.89448407,193.82,193.78,0.69]
[1753131615601,6.69448407,193.79,193.78,0.03]
[1753131615977,6.69448407,193.8,193.78,0.03]
[1753131616387,7.39448407,193.8,193.78,0.03]
[1753131617277,6.69448407,193.8,193.78,0.03]
[1753131617579,7.39448407,193.79,193.78,0.03]
[1753131618706,16.78468397,193.78,193.71,0.09511552]
[1753131618901,6.69448407,193.72,193.71,0.09511552]
[1753131619114,9.33042616,193.73,193.71,0.09511552]
[1753131619288,6.69448407,193.72,193.71,0.09511552]
[1753131620483,6.69448407,193.72,193.66,43.49448407]
[1753131620484,7.39448407,193.72,193.66,41.96362512]
[1753131620803,6.69448407,193.71,193.66,41.96362512]
[1753131620986,7.39448407,193.71,193.66,41.96362512]
[1753131621384,0.64519459,193.74,193.66,41.96362512]
[1753131621385,7.39448407,193.7,193.66,41.96362512]
[1753131621704,0.7,193.69,193.66,41.96362512]
[1753131621903,7.39448407,193.68,193.66,36.8]
[1753131622087,6.69448407,193.7,193.66,41.96358032]
[1753131622292,0.7,193.72,193.66,48.65806439]
[1753131622488,0.7,193.72,193.66,41.96358032]
[1753131622489,6.69448407,193.71,193.66,41.96358032]
[1753131622796,6.69448407,193.71,193.66,42.41358032]
[1753131623410,0.7,193.74,193.68,6.69448407]
[1753131623588,6.69448407,193.75,193.69,6.69448407]
[1753131623788,6.69448407,193.75,193.68,0.45]
[1753131624099,95.19448407,193.75,193.69,6.69448407]
[1753131624806,6.69448407,193.74,193.69,5.16288915]
[1753131625106,7.39448407,193.74,193.69,5.16288915]
[1753131626085,0.7,193.73,193.69,5.16288915]
[1753131626405,0.7,193.72,193.69,5.16288915]
[1753131626587,6.69448407,193.73,193.68,5.16312184]
[1753131626788,7.39448407,193.72,193.68,5.16312184]
[1753131626988,0.7,193.71,193.68,5.16312184]
[1753131627792,7.39448407,193.7,193.69,0.03]
[1753131629707,0.7,193.7,193.69,0.03]
[1753131629909,7.39448407,193.7,193.69,0.03]
[1753131631589,14.73429596,193.7,193.69,0.03]
[1753131631789,14.73429596,193.7,193.58,5.16582291]
[1753131631790,6.50795043,193.7,193.58,5.16582291]
[1753131631985,6.69448407,193.66,193.6,6.69448407]
[1753131632186,6.69448407,193.66,193.61,0.45]
[1753131632409,6.69448407,193.67,193.62,0.45]
[1753131632893,6.69448407,193.67,193.63,5.16448897]
[1753131633295,7.39448407,193.67,193.63,5.16448897]
[1753131634505,0.7,193.67,193.63,5.16448897]
[1753131634718,0.64522789,193.73,193.67,26.0]
[1753131634897,2.62829378,193.75,193.71,6.69448407]
[1753131635091,2.66614018,193.79,193.72,6.69448407]
[1753131635345,0.64499484,193.8,193.75,6.69448407]
[1753131635503,7.39448407,193.82,193.76,6.69448407]
[1753131635816,1.34496156,193.81,193.75,43.51448407]
[1753131635994,0.7,193.81,193.75,43.51448407]
[1753131636604,0.7,193.81,193.76,5.16102394]
[1753131637496,0.7,193.8,193.76,5.16102394]
[1753131638410,4.02157157,193.82,193.76,5.16102394]
[1753131638596,10.71605564,193.82,193.76,5.16102394]
[1753131638797,6.69448407,193.8,193.74,5.16155672]
[1753131639005,0.64502812,193.79,193.74,11.85604079]
[1753131639199,0.64499484,193.8,193.74,48.65604079]
[1753131639401,7.33944563,193.81,193.75,6.69448407]
[1753131639604,7.33941235,193.82,193.76,6.69448407]
[1753131640018,0.64492828,193.82,193.77,6.69448407]
[1753131640532,0.64492828,193.82,193.77,7.14448407]
[1753131640734,0.64492828,193.82,193.78,0.45]
[1753131640916,0.64492828,193.82,193.78,7.14448407]
[1753131641235,0.64492828,193.82,193.77,11.85506963]
[1753131641719,7.33941235,193.82,193.77,5.16058556]
[1753131641913,0.64492828,193.82,193.77,5.16058556]
[1753131642104,0.71,193.81,193.77,5.16058556]
[1753131643122,0.71,193.8,193.76,5.16098169]
[1753131643305,6.69448407,193.79,193.74,36.8]
[1753131643502,0.71,193.79,193.74,43.49448407]
[1753131643730,8.04944563,193.81,193.75,6.69448407]
[1753131643936,6.69448407,193.8,193.74,43.94448407]
[1753131644536,1.35496156,193.81,193.75,6.69448407]
[1753131644717,7.40448407,193.81,193.76,5.16102394]
[1753131645603,6.69448407,193.81,193.76,5.16102394]
[1753131645808,0.71,193.8,193.75,11.85577439]
[1753131646120,7.40448407,193.79,193.73,6.69448407]
[1753131646429,7.40448407,193.79,193.73,43.49448407]
[1753131646795,6.69448407,193.79,193.73,36.8]
[1753131647108,6.69448407,193.75,193.71,5.16235609]
[1753131647309,0.71,193.74,193.71,5.16235609]
[1753131647510,0.71,193.73,193.71,5.16235609]
[1753131647910,0.71,193.75,193.71,5.16235609]
[1753131652229,7.40448407,193.75,193.71,5.16235609]
[1753131652536,6.69448407,193.75,193.71,5.16235609]
[1753131653210,0.71,193.76,193.71,5.16235609]
[1753131653412,0.71,193.82,193.75,6.69448407]
[1753131653617,2.59975538,193.83,193.79,6.69448407]
[1753131653618,0.06,193.83,193.79,6.69448407]
[1753131653916,0.06,193.83,193.79,7.14448407]
[1753131654226,0.06,193.83,193.82,6.69448407]
[1753131654413,0.06,193.87,193.82,43.49448407]
[1753131654613,0.06,193.87,193.85,6.69448407]
[1753131654812,0.06,193.87,193.86,6.95853572]
[1753131655126,0.06,193.87,193.86,7.34853572]
[1753131655438,0.06,193.87,193.86,12.50689742]
[1753131655825,0.06,193.87,193.86,12.24284577]
[1753131656636,0.06,193.87,193.86,49.02284577]
[1753131656846,0.06,193.87,193.86,36.78]
[1753131657334,0.06,193.91,193.86,48.63273009]
[1753131657533,0.06,193.91,193.87,7.08448407]
[1753131657726,0.06,193.91,193.88,6.69448407]
[1753131658128,0.06,193.91,193.89,0.39]
[1753131658336,0.06,193.91,193.9,36.78]
[1753131660050,0.77,193.91,193.9,36.78]
[1753131660341,0.06,193.91,193.9,36.78]
[1753131660940,8.10911302,193.91,193.85,36.78]
[1753131661136,6.69448407,193.89,193.85,36.78]
[1753131661329,7.40448407,193.89,193.85,36.78]
[1753131661549,0.71,193.88,193.85,36.78]
[1753131662438,7.40448407,193.88,193.85,36.78]
[1753131663626,6.69448407,193.86,193.78,2.27608872]
[1753131663826,6.69448407,193.86,193.8,6.69448407]
[1753131664031,95.19448407,193.87,193.81,6.69448407]
[1753131664430,95.90448407,193.87,193.81,6.69448407]
[1753131664631,6.69448407,193.86,193.8,6.69448407]
[1753131664960,11.85303363,193.86,193.8,6.69448407]
[1753131666555,6.69448407,193.85,193.79,43.84448407]
[1753131666850,7.40448407,193.85,193.79,43.45448407]
[1753131667237,12.56327264,193.85,193.79,43.45448407]
[1753131667544,6.69448407,193.84,193.79,36.76]
[1753131667735,6.69448407,193.84,193.8,36.76]
[1753131667736,0.71,193.83,193.8,36.76]
[1753131669137,0.71,193.83,193.79,6.69448407]
[1753131669331,0.71,193.83,193.8,36.76]
[1753131669538,0.71,193.83,193.79,6.69448407]
[1753131669731,0.71,193.83,193.8,36.76]
[1753131670339,5.15889789,193.84,193.8,36.76]
[1753131671131,5.81889789,193.84,193.8,36.76]
[1753131671534,12.51338196,193.84,193.8,36.76]
[1753131672347,0.66,193.83,193.8,36.76]
[1753131673837,11.85338196,193.84,193.8,36.76]
[1753131674240,12.51338196,193.84,193.8,36.76]
[1753131674746,7.35448407,193.83,193.8,36.76]
[1753131674936,0.66,193.82,193.8,36.76]
[1753131675133,93.65868518,193.85,193.79,43.45448407]
[1753131675334,100.35316925,193.85,193.79,43.45448407]
[1753131676042,6.69448407,193.84,193.79,36.76]
[1753131676349,7.35448407,193.83,193.79,36.76]
[1753131676645,0.66,193.82,193.8,0.03]
[1753131677441,7.35448407,193.81,193.8,0.03]
[1753131677645,0.66,193.81,193.8,0.03]
[1753131678241,5.81969248,193.81,193.8,0.03]
[1753131678442,0.66,193.81,193.8,0.03]
[1753131679249,5.81969248,193.81,193.8,0.03]
[1753131679449,12.51417655,193.81,193.8,0.03]
[1753131679957,13.15913811,193.81,193.8,0.03]
[1753131680831,5.81969248,193.81,193.8,0.03]
[1753131681051,6.69448407,193.82,193.8,0.03]
[1753131681258,5.15889393,193.84,193.8,0.03]
[1753131681443,7.35448407,193.83,193.8,0.03]
[1753131681644,6.69448407,193.82,193.8,0.03]
[1753131681844,12.51397674,193.82,193.8,0.03]
[1753131682144,0.66,193.81,193.8,0.03]
[1753131682453,7.35448407,193.81,193.8,0.03]
[1753131683941,12.51417655,193.81,193.8,0.03]
[1753131684861,7.35448407,193.81,193.8,0.03]
[1753131685359,6.69448407,193.82,193.8,0.03]
[1753131685855,7.35448407,193.82,193.8,0.03]
[1753131686256,94.30348631,193.85,193.8,0.03]
[1753131686554,9.16430298,193.86,193.8,0.03]
[1753131686555,6.69448407,193.86,193.81,0.39]
[1753131686762,6.69448407,193.85,193.82,36.76]
[1753131686964,7.35448407,193.85,193.82,36.76]
[1753131688756,0.66,193.85,193.82,36.76]
[1753131688959,6.69448407,193.84,193.82,36.76]
[1753131689141,0.66,193.83,193.82,36.76]
[1753131690065,7.35448407,193.83,193.82,36.76]
[1753131690365,7.35448407,193.83,193.8,36.77]
[1753131690662,0.66,193.82,193.8,36.77]
[1753131690959,7.35448407,193.84,193.8,36.77]
[1753131691457,7.35448407,193.87,193.81,7.08448407]
[1753131691635,6.69448407,193.86,193.81,7.08448407]
[1753131691835,6.69448407,193.86,193.81,0.39]
[1753131692055,7.35448407,193.85,193.8,48.62442542]
[1753131692466,0.66,193.85,193.8,49.01442542]
[1753131692668,7.35448407,193.85,193.8,49.01442542]
[1753131692963,0.66,193.85,193.8,49.01442542]
[1753131693551,6.69448407,193.86,193.8,49.01442542]
[1753131694460,0.06,193.88,193.85,6.69448407]
[1753131694760,0.06,193.88,193.87,6.69448407]
[1753131694965,0.06,193.91,193.87,43.43448407]
[1753131695156,0.06,193.92,193.9,6.69448407]
[1753131695340,0.06,193.92,193.91,43.43448407]
[1753131695535,0.06,193.92,193.91,42.16703161]
[1753131695756,0.06,193.92,193.91,48.59151568]
[1753131696462,0.06,193.92,193.91,48.86151568]
[1753131696655,0.06,193.92,193.91,12.12151568]
[1753131696849,0.06,193.92,193.91,49.12520836]
[1753131697361,1e-08,193.92,193.91,49.12520836]
[1753131697663,0.06,193.94,193.93,26.0]
[1753131697664,1e-08,193.94,193.93,26.0]
[1753131697965,1e-08,193.94,193.93,32.95804379]
[1753131698349,1e-08,193.94,193.93,33.22804379]
[1753131698563,1e-08,193.95,193.93,69.94804379]
[1753131698740,0.06,194.02,193.94,6.96448407]
[1753131698943,0.06,194.02,193.98,6.69448407]
[1753131699161,0.06,194.02,193.98,43.41448407]
[1753131699466,1e-08,193.99,193.98,50.64219557]
[1753131699650,1e-08,193.99,193.98,49.10288213]
[1753131700163,1e-08,193.99,193.98,43.41448407]
[1753131700371,1e-08,193.99,193.98,36.72]
[1753131700772,1e-08,193.99,193.98,43.41448407]
[1753131700960,1e-08,193.99,193.98,48.5696547]
[1753131701662,1e-08,193.99,193.98,41.87517063]
[1753131702062,1e-08,193.99,193.98,48.5696547]
[1753131702462,1e-08,193.99,193.98,41.87517063]
[1753131706569,7.39448408,193.99,193.91,0.53328174]
[1753131706755,0.7,193.98,193.93,6.69448407]
[1753131706954,6.69448408,193.99,193.94,36.7]
[1753131707180,1e-08,193.99,193.94,43.66448407]
[1753131707470,1e-08,193.99,193.96,6.69448407]
[1753131707681,1e-08,193.99,193.97,36.7]
[1753131709675,1e-08,193.99,193.97,41.85523349]
[1753131710274,1e-08,193.99,193.97,48.54971756]
[1753131711060,1e-08,193.99,193.97,36.7]
[1753131711779,1e-08,193.99,193.97,48.54983236]
[1753131712352,1e-08,193.99,193.98,7.22773795]
[1753131713580,1e-08,193.99,193.98,0.53325388]
[1753131713881,1e-08,193.99,193.98,12.38290858]
[1753131718480,1e-08,193.99,193.98,52.98637662]
[1753131718669,0.06,194.02,194.01,32.69448407]
[1753131718869,0.06,194.02,194.01,74.79188571]
[1753131719065,0.06,194.02,194.01,75.06188571]
[1753131719264,1e-08,194.02,194.01,75.06188571]
[1753131719675,0.06,194.03,194.01,75.06188571]
[1753131719676,1e-08,194.03,194.02,16.78468397]
[1753131719973,1e-08,194.03,194.02,69.64448407]
[1753131720871,1e-08,194.03,194.02,74.79859189]
[1753131721287,0.70000001,194.03,194.02,11.84859189]
[1753131721591,1e-08,194.03,194.02,48.52859189]
[1753131721798,1e-08,194.03,194.02,48.79859189]
[1753131722287,1e-08,194.03,194.02,49.06155364]
[1753131723887,0.2,194.07,194.02,49.06155364]
[1753131723888,0.2,194.07,194.05,26.0]
[1753131724087,1e-08,194.07,194.06,43.63720665]
[1753131724404,1e-08,194.09,194.08,26.0]
[1753131724607,1e-08,194.09,194.08,69.37448407]
[1753131724802,0.06,194.19,194.18,26.0]
[1753131725092,0.76,194.19,194.18,36.66]
[1753131725410,0.76,194.19,194.18,41.80986095]
[1753131725780,0.06,194.19,194.18,48.50434502]
[1753131725981,0.06,194.19,194.18,48.77434502]
[1753131726184,1e-08,194.19,194.18,74.77434502]
[1753131726498,1e-08,194.19,194.18,48.77434502]
[1753131726993,1e-08,194.19,194.18,81.28095545]
[1753131727187,1e-08,194.19,194.18,87.97543952]
[1753131728200,0.06,194.23,194.21,26.0]
[1753131728381,0.06,194.23,194.22,43.61614537]
[1753131728767,0.06,194.23,194.22,43.88614537]
[1753131729100,0.06,194.24,194.22,43.88614537]
[1753131729300,0.06,194.27,194.26,26.0]
[1753131729480,0.75,194.27,194.26,69.35448407]
[1753131729876,0.06,194.27,194.26,69.35448407]
[1753131730080,0.06,194.27,194.26,74.50222421]
[1753131730300,0.06,194.27,194.26,74.64121275]
[1753131733187,0.75,194.27,194.26,67.94672868]
[1753131733504,0.75,194.27,194.26,74.64121275]
[1753131735000,0.06,194.27,194.26,74.64121275]
[1753131735907,0.75,194.27,194.26,74.64121275]
[1753131736101,0.75,194.27,194.26,69.49347261]
[1753131736291,0.75,194.27,194.26,74.64121275]
[1753131736986,0.75,194.27,194.26,67.94672868]
[1753131737496,0.06,194.27,194.26,74.64121275]
[1753131738787,0.06,194.27,194.26,74.91121275]
[1753131740202,0.06,194.28,194.26,74.91121275]
[1753131740432,0.06,194.28,194.27,6.95581408]
[1753131741208,0.06,194.28,194.27,12.10328924]
[1753131742787,0.75,194.28,194.26,26.0]
[1753131742988,0.06,194.28,194.27,36.62]
[1753131743611,0.75,194.28,194.27,36.62]
[1753131744004,7.44448407,194.28,194.26,0.13898854]
[1753131744198,7.38448407,194.27,194.26,36.75898854]
[1753131744512,0.69,194.27,194.26,36.75898854]
[1753131745515,0.69,194.27,194.26,41.90672868]
[1753131746011,0.06,194.28,194.26,48.60121275]
[1753131746309,0.06,194.28,194.27,6.95581408]
[1753131747194,0.06,194.28,194.27,7.22581408]
[1753131747389,0.2,194.29,194.27,7.22581408]
[1753131747616,0.2,194.29,194.28,74.46169428]
[1753131748492,0.2,194.29,194.28,37.84169428]
[1753131748699,0.89,194.29,194.28,74.46169428]
[1753131749012,0.2,194.29,194.28,74.46169428]
[1753131754696,0.2,194.29,194.28,31.14721021]
[1753131754916,0.89,194.29,194.26,0.13898854]
[1753131755107,6.89448407,194.29,194.27,36.6]
[1753131755441,7.9922,194.27,194.21,5.1490065]
[1753131755621,6.69448407,194.24,194.18,6.69448407]
[1753131755911,0.69,194.23,194.19,36.6]
[1753131757223,0.69,194.22,194.19,41.74947098]
[1753131757403,0.69,194.22,194.19,48.44395505]
[1753131757603,0.69,194.22,194.2,6.69448407]
[1753131757820,0.69,194.22,194.21,36.6]
[1753131758401,0.69,194.26,194.21,43.29448407]
[1753131759015,0.89,194.29,194.26,5.14774014]
[1753131759206,0.89,194.29,194.27,36.86130362]
[1753131759611,0.89,194.29,194.27,36.6]
[1753131759808,0.69,194.28,194.27,36.6]
[1753131760321,0.2,194.29,194.27,43.29448407]
[1753131760514,0.2,194.29,194.28,6.95574784]
[1753131761120,0.2,194.29,194.28,12.10295805]
[1753131761431,0.2,194.29,194.28,16.08049259]
[1753131763823,0.89,194.29,194.28,16.08049259]
[1753131764822,0.2,194.29,194.28,16.08049259]
[1753131765733,1e-08,194.29,194.28,33.27517656]
[1753131766036,1e-08,194.29,194.28,43.94719517]
[1753131766911,0.06,194.35,194.28,43.94719517]
[1753131766912,0.06,194.35,194.31,26.0]
[1753131767113,0.06,194.35,194.34,41.81763968]
[1753131767351,0.06,194.35,194.34,78.41763968]
[1753131779957,0.06,194.36,194.34,78.41763968]
[1753131779958,1e-08,194.36,194.35,16.78468397]
[1753131780165,2.3347,194.46,194.38,26.0]
[1753131780329,2.3347,194.46,194.42,26.0]
[1753131780533,1.6447,194.46,194.43,36.58]
[1753131780742,2.3347,194.46,194.44,10.67201861]
[1753131781064,0.69,194.46,194.45,36.58]
[1753131781271,0.1,194.47,194.45,43.49860012]
[1753131781452,0.1,194.47,194.46,6.65848772]
[1753131781756,0.1,194.47,194.46,32.65848772]
[1753131782156,0.79,194.47,194.46,26.0]
[1753131782330,0.79,194.47,194.46,67.70244574]
[1753131782529,0.79,194.47,194.46,74.36093346]
[1753131783264,0.1,194.49,194.48,26.0]
[1753131783552,0.1,194.49,194.48,69.4784018]
[1753131784457,0.79,194.49,194.48,74.6203187]
[1753131784756,0.79,194.49,194.48,74.36040462]
[1753131785336,0.1,194.49,194.48,74.62034507]
[1753131785930,1e-08,194.49,194.48,75.03034507]
[1753131786188,1e-08,194.49,194.48,74.77040462]
[1753131786768,0.1,194.55,194.52,26.0]
[1753131787140,0.69,194.54,194.52,32.65848772]
[1753131787468,0.1,194.55,194.53,43.21848772]
[1753131787635,0.1,194.55,194.54,6.65848772]
[1753131787835,0.79,194.55,194.54,6.65848772]
[1753131788053,0.79,194.55,194.53,36.56]
[1753131788241,0.67,194.54,194.53,43.21848772]
[1753131788445,0.1,194.55,194.53,48.61866668]
[1753131788638,0.1,194.55,194.54,6.65848772]
[1753131788841,0.77,194.55,194.54,6.65848772]
[1753131789471,0.77,194.55,194.53,48.359083]
[1753131789642,0.67,194.54,194.53,48.359083]
[1753131789842,0.67,194.54,194.53,11.799083]
[1753131790050,0.67,194.54,194.53,48.359083]
[1753131790779,0.67,194.54,194.52,37.79933501]
[1753131790991,7.32848772,194.54,194.48,6.65848772]
[1753131791266,0.67,194.53,194.49,43.19848772]
[1753131791441,0.67,194.53,194.5,36.54]
[1753131791643,0.67,194.53,194.5,43.19848772]
[1753131792153,0.67,194.53,194.5,36.54]
[1753131792660,0.67,194.53,194.5,41.68118394]
[1753131793243,0.67,194.52,194.51,6.65848772]
[1753131793443,1.5042,194.54,194.5,41.68118394]
[1753131793444,0.67,194.53,194.5,48.33967166]
[1753131793673,0.67,194.53,194.51,6.91820354]
[1753131793868,0.67,194.53,194.5,41.68118394]
[1753131793869,0.67,194.53,194.52,36.54]
[1753131794871,0.67,194.53,194.52,41.68085955]
[1753131795652,0.77,194.55,194.52,48.59899702]
[1753131795852,0.67,194.54,194.53,6.65848772]
[1753131796262,0.67,194.54,194.52,48.33934727]
[1753131796957,0.67,194.53,194.52,48.33934727]
[1753131797170,0.1,194.55,194.54,26.0]
[1753131797366,0.1,194.55,194.54,69.19848772]
[1753131799051,0.1,194.55,194.54,74.33881875]
[1753131800558,0.77,194.55,194.54,26.0]
[1753131800757,0.77,194.55,194.54,62.54]
[1753131800951,12.56860909,194.55,194.45,17.04428166]
[1753131801270,12.69418772,194.53,194.49,26.0]
[1753131801567,0.67,194.52,194.5,36.54]
[1753131801767,0.67,194.51,194.5,36.54]
[1753131802357,0.67,194.51,194.5,41.68138817]
[1753131805972,11.32126914,194.51,194.47,26.0]
[1753131806174,10.65126914,194.48,194.43,5.14301045]
[1753131806376,0.67,194.47,194.44,36.54]
[1753131806758,10.65126914,194.49,194.44,36.54]
[1753131807063,0.67,194.46,194.44,36.54]
[1753131807380,0.67,194.46,194.44,41.68271634]
[1753131808958,0.67,194.46,194.44,36.54]
[1753131809288,0.67,194.46,194.45,36.54]
[1753131809986,11.32126914,194.46,194.41,0.03]
[1753131810155,1.31283877,194.45,194.42,36.54]
[1753131810361,10.65126914,194.43,194.42,36.54]
[1753131810680,11.32126914,194.43,194.42,36.54]
[1753131812581,0.67,194.43,194.42,36.54]
[1753131812773,0.67,194.45,194.42,36.54]
[1753131812973,10.65126914,194.43,194.42,36.54]
[1753131813157,11.32126914,194.43,194.42,36.54]
[1753131814489,0.67,194.43,194.42,36.54]